bitfinex-derivatives/quotes_BTCF0:USTF0_20251023
["timestamp","ask_amount","ask_price","bid_price","bid_amount"]
[1761178371996,0.0078,107750.0,107740.0,0.476906]
[1761178372894,0.0078,107750.0,107740.0,0.51029646]
[1761178375298,0.0078,107750.0,107740.0,0.476906]
[1761178376001,0.0078,107750.0,107740.0,0.876906]
[1761178378106,0.0078,107750.0,107740.0,0.91029646]
[1761178379302,0.0078,107750.0,107740.0,0.876906]
[1761178380309,0.05355,107750.0,107740.0,0.476826]
[1761178380610,0.05355,107750.0,107740.0,0.64743264]
[1761178381001,0.0078,107750.0,107740.0,0.64743264]
[1761178381205,0.0078,107750.0,107740.0,0.6808231]
[1761178381406,0.0078,107750.0,107740.0,0.64743264]
[1761178385310,0.0078,107750.0,107740.0,0.6808231]
[1761178388215,0.0305,107750.0,107740.0,0.6808231]
[1761178388512,0.0078,107750.0,107740.0,0.6808231]
[1761178393122,0.0305,107750.0,107740.0,0.6808231]
[1761178393310,0.05355,107750.0,107740.0,0.6808231]
[1761178393511,0.05355,107750.0,107740.0,0.73088083]
[1761178393715,0.0305,107750.0,107740.0,0.73088083]
[1761178394423,0.0078,107750.0,107740.0,0.73088083]
[1761178394622,0.0305,107750.0,107740.0,0.73088083]
[1761178396426,0.0078,107750.0,107740.0,0.73088083]
[1761178396814,0.05355,107750.0,107740.0,0.73088083]
[1761178397226,0.05355,107750.0,107740.0,0.69749037]
[1761178397731,0.0305,107750.0,107740.0,0.69749037]
[1761178398022,0.0078,107750.0,107740.0,0.69749037]
[1761178399229,0.0305,107750.0,107740.0,0.69749037]
[1761178400830,0.0078,107750.0,107740.0,0.52688373]
[1761178401131,0.0305,107750.0,107740.0,0.69749037]
[1761178401331,0.05355,107750.0,107740.0,0.69749037]
[1761178404234,0.0078,107750.0,107740.0,0.69749037]
[1761178404627,0.0078,107750.0,107740.0,0.64743264]
[1761178404931,0.0078,107750.0,107740.0,0.71410229]
[1761178405532,0.0078,107750.0,107740.0,0.64743264]
[1761178406728,0.0048,107750.0,107740.0,0.64743264]
[1761178410043,0.0048,107750.0,107740.0,0.71410229]
[1761178413045,0.0048,107750.0,107740.0,0.64743264]
[1761178416247,0.0048,107750.0,107740.0,0.71410229]
[1761178420854,0.04967,107750.0,107740.0,0.71410229]
[1761178421149,0.0048,107750.0,107740.0,0.71410229]
[1761178421852,0.02666,107750.0,107740.0,0.71410229]
[1761178422448,0.04967,107750.0,107740.0,0.71410229]
[1761178422649,0.02666,107750.0,107740.0,0.69512527]
[1761178422846,0.02666,107750.0,107740.0,0.62845562]
[1761178423252,0.0048,107750.0,107740.0,0.62845562]
[1761178423555,0.02666,107750.0,107740.0,0.62845562]
[1761178423851,0.04967,107750.0,107740.0,0.62845562]
[1761178424260,0.02666,107750.0,107740.0,0.62845562]
[1761178424462,0.04967,107750.0,107740.0,0.62845562]
[1761178424753,0.0048,107750.0,107740.0,0.62845562]
[1761178426656,0.0048,107750.0,107740.0,2.12845562]
[1761178429859,0.02666,107750.0,107740.0,2.12845562]
[1761178430662,0.0048,107750.0,107740.0,2.12845562]
[1761178430957,0.04967,107750.0,107740.0,2.12845562]
[1761178432357,0.04967,107750.0,107740.0,2.19512527]
[1761178433060,0.02666,107750.0,107740.0,2.19512527]
[1761178433361,0.0492,107750.0,107740.0,2.19512527]
[1761178433549,0.0492,107750.0,107740.0,2.12845562]
[1761178433857,0.0048,107750.0,107740.0,2.12845562]
[1761178434655,0.0048,107750.0,107740.0,1.976826]
[1761178434861,0.0048,107750.0,107740.0,2.12845562]
[1761178436256,0.0048,107750.0,107740.0,2.19512527]
[1761178438361,0.0048,107750.0,107740.0,2.12845562]
[1761178439155,0.02778,107750.0,107740.0,2.12845562]
[1761178439361,0.05032,107750.0,107740.0,2.12845562]
[1761178440656,0.05032,107750.0,107740.0,1.80125562]
[1761178440861,0.46303,107750.0,107740.0,0.18925879]
[1761178441058,0.46303,107750.0,107740.0,0.51617879]
[1761178441459,0.46303,107750.0,107740.0,0.05013279]
[1761178441660,0.48797536,107750.0,107740.0,0.36033651]
[1761178442163,0.48797536,107750.0,107740.0,0.45314291]
[1761178442365,0.06303,107750.0,107740.0,0.65053253]
[1761178443466,0.05032,107750.0,107740.0,0.66287253]
[1761178444563,0.05032,107750.0,107740.0,0.71300532]
[1761178444868,0.05032,107750.0,107740.0,0.67958881]
[1761178445856,0.0048,107750.0,107740.0,1.07958881]
[1761178446769,0.0048,107750.0,107740.0,2.17958881]
[1761178448259,0.0048,107750.0,107740.0,2.12945602]
[1761178450666,0.02778,107750.0,107740.0,2.12945602]
[1761178451265,0.02778,107750.0,107740.0,2.17952988]
[1761178451665,0.05032,107750.0,107740.0,2.17952988]
[1761178451967,0.05032,107750.0,107740.0,2.12945602]
[1761178453267,0.05032,107750.0,107740.0,1.80253602]
[1761178453466,0.05032,107750.0,107740.0,2.17948966]
[1761178453966,0.05032,107750.0,107740.0,1.85260966]
[1761178454166,0.05032,107750.0,107740.0,2.17948966]
[1761178454971,0.06303,107750.0,107740.0,2.16714966]
[1761178455172,0.06303,107750.0,107740.0,0.66714966]
[1761178455173,0.46303,107750.0,107740.0,0.66714966]
[1761178456164,0.46303,107750.0,107740.0,0.34026966]
[1761178456477,0.46303,107750.0,107740.0,0.54890395]
[1761178456773,0.46303,107750.0,107740.0,0.70053357]
[1761178457165,0.06303,107750.0,107740.0,0.70053357]
[1761178458069,0.06303,107750.0,107740.0,0.37365357]
[1761178458277,0.06303,107750.0,107740.0,0.70053357]
[1761178459076,0.06303,107750.0,107740.0,0.66714966]
[1761178460075,0.06303,107750.0,107740.0,0.70053302]
[1761178462579,0.05032,107750.0,107740.0,0.71287302]
[1761178463078,0.0048,107750.0,107740.0,0.71287302]
[1761178463285,0.04773,107750.0,107740.0,0.71287302]
[1761178464280,0.0048,107750.0,107740.0,0.67948966]
[1761178464470,0.02768,107750.0,107740.0,0.67948966]
[1761178464667,0.04989,107750.0,107740.0,0.67948966]
[1761178466980,0.0048,107750.0,107740.0,0.67948966]
[1761178468180,0.02768,107750.0,107740.0,0.67948966]
[1761178468479,0.04989,107750.0,107740.0,0.67948966]
[1761178472075,0.06322,107750.0,107740.0,0.66714966]
[1761178472787,0.06322,107750.0,107740.0,0.67948966]
[1761178473084,0.04989,107750.0,107740.0,0.67948966]
[1761178473879,0.04989,107750.0,107740.0,0.52786004]
[1761178474072,0.0048,107750.0,107740.0,0.67948966]
[1761178474480,0.0048,107750.0,107740.0,0.62941602]
[1761178474682,0.0048,107750.0,107740.0,0.69608567]
[1761178484299,0.02768,107750.0,107740.0,0.69608567]
[1761178484606,0.04989,107750.0,107740.0,0.69608567]
[1761178484808,0.04989,107750.0,107740.0,0.71503826]
[1761178486109,0.04989,107750.0,107740.0,0.54445605]
[1761178486310,0.02768,107750.0,107740.0,0.71503826]
[1761178486910,0.04989,107750.0,107740.0,0.71503826]
[1761178487103,0.0048,107750.0,107740.0,0.81895082]
[1761178487711,0.0048,107750.0,107740.0,0.64836861]
[1761178489208,0.02768,107750.0,107740.0,0.64836861]
[1761178489408,0.04989,107750.0,107740.0,0.64836861]
[1761178492515,0.04989,107750.0,107740.0,0.30914861]
[1761178492516,0.06379,107750.0,107740.0,0.30914861]
[1761178492707,0.06379,107750.0,107740.0,0.63594861]
[1761178493613,0.46379,107750.0,107740.0,0.30914861]
[1761178493918,0.46379,107750.0,107740.0,0.58087129]
[1761178494117,0.46379,107750.0,107740.0,0.53075397]
[1761178494309,0.65931757,107750.0,107740.0,0.05474176]
[1761178494509,0.48873536,107750.0,107740.0,0.55208397]
[1761178495316,0.48873536,107750.0,107740.0,0.57533397]
[1761178495619,0.48873536,107750.0,107740.0,0.66814037]
[1761178496218,0.48873536,107750.0,107740.0,0.63472861]
[1761178497220,0.46379,107750.0,107740.0,0.63472861]
[1761178497422,0.06379,107750.0,107740.0,0.63472861]
[1761178498422,0.06379,107750.0,107740.0,0.68048037]
[1761178499121,0.06379,107750.0,107740.0,0.66814037]
[1761178499821,0.46379,107750.0,107740.0,0.66814037]
[1761178501423,0.46379,107750.0,107740.0,0.57533397]
[1761178501722,0.46379,107750.0,107740.0,0.66814037]
[1761178503321,0.46379,107750.0,107740.0,0.63472861]
[1761178506727,0.44989,107750.0,107740.0,0.64522861]
[1761178506922,0.04989,107750.0,107740.0,0.67864037]
[1761178507115,0.06379,107750.0,107740.0,0.66814037]
[1761178512524,0.05819,107740.0,107730.0,0.39150299]
[1761178512724,0.05819,107740.0,107730.0,0.66814567]
[1761178513318,0.05819,107740.0,107730.0,0.63473391]
[1761178513821,0.05819,107740.0,107730.0,0.4731517]
[1761178514122,0.05819,107740.0,107730.0,0.64373391]
[1761178514633,0.05819,107740.0,107730.0,0.64073391]
[1761178514926,0.05819,107740.0,107730.0,0.63473391]
[1761178515728,0.05819,107740.0,107730.0,0.4641517]
[1761178515931,0.05819,107740.0,107730.0,0.63473391]
[1761178516930,0.05819,107740.0,107730.0,0.4641517]
[1761178517132,0.05819,107740.0,107730.0,0.63473391]
[1761178517624,0.05819,107740.0,107730.0,0.30797391]
[1761178517825,0.05819,107740.0,107730.0,0.63473391]
[1761178518624,0.62877221,107740.0,107730.0,0.4641517]
[1761178519024,0.62877221,107740.0,107730.0,0.37134]
[1761178519225,0.62877221,107740.0,107730.0,0.04458]
[1761178519424,0.62877221,107740.0,107730.0,0.02133]
[1761178519625,0.05819,107730.0,107720.0,0.17080946]
[1761178519826,0.06748179,107730.0,107720.0,0.37134]
[1761178520025,0.06748179,107730.0,107720.0,0.54192221]
[1761178520431,0.06748179,107730.0,107720.0,0.63474591]
[1761178520833,0.05819,107730.0,107720.0,0.4641637]
[1761178521134,0.05819,107730.0,107720.0,0.63474591]
[1761178521334,0.05819,107730.0,107720.0,0.30798591]
[1761178521638,0.05819,107730.0,107720.0,0.63474591]
[1761178522230,0.05819,107730.0,107720.0,0.4641637]
[1761178522533,0.62877221,107730.0,107720.0,0.1374036]
[1761178523034,0.62877221,107730.0,107720.0,0.04458]
[1761178523233,0.62877221,107730.0,107720.0,0.02133]
[1761178523533,0.62877221,107730.0,107720.0,0.04234]
[1761178523734,0.45819,107730.0,107720.0,0.1351636]
[1761178523927,0.46119,107730.0,107720.0,0.30574581]
[1761178525032,0.63177221,107730.0,107720.0,0.1351636]
[1761178525230,0.63177221,107730.0,107720.0,0.21292221]
[1761178525723,0.46119,107730.0,107720.0,0.30574581]
[1761178529440,0.46119,107730.0,107720.0,0.31624581]
[1761178529740,0.46119,107730.0,107720.0,0.30574581]
[1761178531038,0.003,107730.0,107720.0,0.48682802]
[1761178531438,0.04699,107730.0,107720.0,0.31624581]
[1761178531740,0.06027,107730.0,107720.0,0.30574581]
[1761178531940,0.06027,107730.0,107720.0,0.33915757]
[1761178534043,0.06027,107730.0,107720.0,0.34965757]
[1761178534340,0.06027,107730.0,107720.0,0.07575176]
[1761178534534,0.63085221,107730.0,107720.0,0.02133]
[1761178534935,0.63085221,107730.0,107720.0,0.04286]
[1761178535737,0.63085221,107730.0,107720.0,0.02133]
[1761178536541,0.63085221,107730.0,107720.0,0.04286]
[1761178538248,0.65579757,107730.0,107720.0,0.04286]
[1761178538545,0.05727,107720.0,107710.0,0.63368451]
[1761178539847,0.22785221,107720.0,107710.0,0.04347]
[1761178540347,0.22785221,107720.0,107710.0,0.02194]
[1761178540550,0.62785221,107720.0,107710.0,0.02194]
[1761178540750,0.62785221,107720.0,107710.0,0.04347]
[1761178542348,0.05727,107720.0,107710.0,0.30688441]
[1761178542647,0.05727,107720.0,107710.0,0.31738441]
[1761178543145,0.05727,107720.0,107710.0,0.30688441]
[1761178543845,0.04399,107720.0,107710.0,0.31738441]
[1761178544246,0.05727,107720.0,107710.0,0.31738441]
[1761178544442,0.05727,107720.0,107710.0,0.30688441]
[1761178544643,0.22785221,107720.0,107710.0,0.04347]
[1761178544935,0.05727,107720.0,107710.0,0.21405221]
[1761178545143,0.05727,107720.0,107710.0,0.30688441]
[1761178546747,0.05727,107720.0,107710.0,0.1363022]
[1761178551953,0.02226,107720.0,107710.0,0.1468022]
[1761178552155,0.04399,107720.0,107710.0,0.1468022]
[1761178552946,0.05783,107720.0,107710.0,0.1468022]
[1761178553655,0.05783,107720.0,107710.0,0.2985722]
[1761178553656,0.04399,107720.0,107710.0,0.2985722]
[1761178554150,0.02226,107720.0,107710.0,0.2985722]
[1761178554346,0.40854536,107730.0,107720.0,0.0928236]
[1761178554550,0.40854536,107730.0,107720.0,0.2880336]
[1761178554749,0.06846536,107730.0,107720.0,0.2966136]
[1761178555148,0.06846536,107730.0,107720.0,0.6234136]
[1761178555752,0.07146536,107730.0,107720.0,0.6234136]
[1761178561562,0.04926536,107730.0,107720.0,0.6234136]
[1761178561861,0.003,107730.0,107720.0,1.1751836]
[1761178562061,0.003,107730.0,107720.0,1.0234136]
[1761178562259,0.003,107730.0,107720.0,1.05682536]
[1761178563058,0.003,107730.0,107720.0,1.10694268]
[1761178563254,0.003,107730.0,107720.0,1.07353092]
[1761178564458,0.003,107730.0,107720.0,1.23437541]
[1761178564665,0.0048,107750.0,107740.0,0.1467464]
[1761178564961,0.0048,107750.0,107740.0,1.10866446]
[1761178565155,0.0048,107750.0,107740.0,1.07530924]
[1761178566160,0.0048,107750.0,107740.0,0.92353924]
[1761178566359,0.0048,107750.0,107740.0,1.10860733]
[1761178566750,0.0048,107750.0,107740.0,0.70860733]
[1761178567970,0.0048,107750.0,107740.0,0.55683733]
[1761178568264,0.0048,107750.0,107740.0,0.90680449]
[1761178568565,0.0048,107750.0,107740.0,1.05857449]
[1761178569060,0.0048,107750.0,107740.0,1.10860733]
[1761178570061,0.15922728,107790.0,107780.0,0.04344]
[1761178570356,0.06016,107790.0,107780.0,0.52189]
[1761178570569,0.06016,107790.0,107780.0,0.4628919]
[1761178571161,0.04632,107790.0,107780.0,0.6251619]
[1761178571362,0.04932,107790.0,107780.0,0.6251619]
[1761178571568,0.0058,107790.0,107780.0,0.4733919]
[1761178571752,0.0058,107790.0,107780.0,0.6251619]
[1761178572563,0.0058,107790.0,107780.0,0.63418447]
[1761178573554,0.0058,107790.0,107780.0,0.48241447]
[1761178573958,0.0058,107790.0,107780.0,0.63418447]
[1761178574666,0.02712,107790.0,107780.0,0.63418447]
[1761178575169,0.0058,107790.0,107780.0,0.63418447]
[1761178575759,0.02712,107790.0,107780.0,0.63418447]
[1761178576373,0.04932,107790.0,107780.0,0.63418447]
[1761178578365,0.04932,107790.0,107780.0,0.6251619]
[1761178578366,0.06316,107790.0,107780.0,0.6251619]
[1761178578662,0.46316,107790.0,107780.0,0.04344]
[1761178578868,0.47225323,107790.0,107780.0,0.04344]
[1761178579170,0.05736,107780.0,107760.0,0.2965752]
[1761178579469,0.05736,107780.0,107770.0,0.37004]
[1761178580362,0.06036,107780.0,107770.0,0.4628206]
[1761178580569,0.04652,107780.0,107770.0,0.6269306]
[1761178581961,0.04352,107780.0,107770.0,0.6269306]
[1761178582162,0.02432,107780.0,107770.0,0.6269306]
[1761178583371,0.003,107780.0,107770.0,0.6269306]
[1761178584158,0.003,107780.0,107770.0,1.0269306]
[1761178586265,0.02503,107780.0,107770.0,1.0269306]
[1761178586865,0.02503,107780.0,107770.0,0.7003306]
[1761178587059,0.02503,107780.0,107770.0,1.0269306]
[1761178587570,0.02503,107780.0,107770.0,1.0268906]
[1761178587768,0.003,107780.0,107770.0,1.0268906]
[1761178588176,0.04783,107780.0,107770.0,0.3003306]
[1761178588475,0.04783,107780.0,107770.0,0.6268906]
[1761178589373,0.003,107780.0,107770.0,0.6268906]
[1761178590271,0.003,107780.0,107770.0,1.0268906]
[1761178592273,0.003,107780.0,107770.0,1.06018869]
[1761178595269,0.003,107780.0,107770.0,1.11022153]
[1761178598271,0.003,107780.0,107770.0,1.07692344]
[1761178600687,0.003,107780.0,107770.0,0.92515344]
[1761178600983,0.003,107780.0,107770.0,1.07692344]
[1761178601183,0.04783,107780.0,107770.0,0.35036344]
[1761178601384,0.04783,107780.0,107770.0,0.71024016]
[1761178601782,0.04783,107780.0,107770.0,0.67688344]
[1761178602677,0.003,107780.0,107770.0,0.67688344]
[1761178602877,0.003,107780.0,107770.0,1.07688344]
[1761178607486,0.02503,107780.0,107770.0,1.07688344]
[1761178607685,0.003,107780.0,107770.0,1.07688344]
[1761178608385,0.02503,107780.0,107770.0,1.07688344]
[1761178608581,0.04783,107780.0,107770.0,0.92511344]
[1761178608787,0.06158,107780.0,107770.0,0.69562029]
[1761178609181,0.06158,107780.0,107770.0,0.72898016]
[1761178611084,0.06158,107780.0,107770.0,0.40246016]
[1761178611282,0.06158,107780.0,107770.0,0.71664016]
[1761178611484,0.06158,107780.0,107770.0,0.66660732]
[1761178612282,0.06158,107780.0,107770.0,0.49610047]
[1761178612481,0.06158,107780.0,107770.0,0.66660732]
[1761178612985,0.04783,107780.0,107770.0,0.67894732]
[1761178613286,0.04783,107780.0,107770.0,0.72898016]
[1761178613486,0.06081,107780.0,107770.0,0.71664016]
[1761178614992,0.06081,107780.0,107770.0,0.54613331]
[1761178615293,0.06081,107780.0,107770.0,0.71664016]
[1761178618584,0.06081,107780.0,107770.0,0.72898016]
[1761178619390,0.04783,107780.0,107770.0,0.72898016]
[1761178620594,0.06081,107780.0,107770.0,0.72898016]
[1761178622398,0.06081,107780.0,107770.0,0.40246016]
[1761178622694,0.06081,107780.0,107770.0,0.39012016]
[1761178622892,0.46081,107780.0,107770.0,0.71664016]
[1761178623084,0.46081,107780.0,107770.0,0.66660732]
[1761178625203,0.46081,107780.0,107770.0,0.63324745]
[1761178626797,0.06081,107780.0,107770.0,0.63324745]
[1761178628100,0.06081,107780.0,107770.0,0.30672745]
[1761178628301,0.06081,107780.0,107770.0,0.63324745]
[1761178628499,0.06081,107780.0,107770.0,0.4627406]
[1761178628703,0.46081,107780.0,107770.0,0.30672745]
[1761178628896,0.46081,107780.0,107770.0,0.63324745]
[1761178629500,0.46081,107780.0,107770.0,0.31906745]
[1761178629800,0.44783,107780.0,107770.0,0.35242732]
[1761178630002,0.04783,107780.0,107770.0,0.67894732]
[1761178630403,0.02503,107780.0,107770.0,0.67894732]
[1761178630608,0.0601,107780.0,107770.0,0.50844047]
[1761178630796,0.0601,107780.0,107770.0,0.67894732]
[1761178631706,0.0601,107780.0,107770.0,0.49610047]
[1761178631895,0.0601,107780.0,107770.0,0.67894732]
[1761178632195,0.04712,107780.0,107770.0,0.67894732]
[1761178633399,0.02503,107780.0,107770.0,0.67894732]
[1761178634802,0.04712,107780.0,107770.0,0.67894732]
[1761178636496,0.04712,107780.0,107770.0,0.64431732]
[1761178636802,0.0601,107780.0,107770.0,0.49659047]
[1761178637004,0.0601,107780.0,107770.0,0.66709732]
[1761178637401,0.05990811,107780.0,107770.0,0.66709732]
[1761178637606,0.05990811,107780.0,107770.0,0.66709722]
[1761178638204,0.05990811,107780.0,107770.0,0.67567722]
[1761178638398,0.04692811,107780.0,107770.0,0.67567722]
[1761178639508,0.04692811,107780.0,107770.0,0.34915722]
[1761178639706,0.04692811,107780.0,107770.0,0.67567722]
[1761178640313,0.04692811,107780.0,107770.0,0.34915722]
[1761178640504,0.04692811,107780.0,107770.0,0.67567722]
[1761178643909,0.00280811,107780.0,107770.0,0.67567722]
[1761178644611,0.04689811,107780.0,107770.0,0.67567722]
[1761178645709,0.00280811,107780.0,107770.0,0.67567722]
[1761178645912,0.00280811,107780.0,107770.0,1.29621691]
[1761178646118,0.00280811,107780.0,107770.0,1.26285704]
[1761178646510,0.00280811,107780.0,107770.0,1.27949385]
[1761178647217,0.00280811,107780.0,107770.0,1.2128242]
[1761178648217,0.0028,107790.0,107770.0,1.2128242]
[1761178648518,0.0028,107790.0,107780.0,0.53912065]
[1761178649617,0.0058,107790.0,107780.0,0.53912065]
[1761178650416,0.0058,107790.0,107780.0,0.93912065]
[1761178652116,0.0058,107790.0,107780.0,1.26564065]
[1761178652316,0.0058,107790.0,107780.0,0.86564065]
[1761178652620,0.0058,107790.0,107780.0,0.6951338]
[1761178652812,0.0058,107790.0,107780.0,0.3686138]
[1761178653121,0.04989,107790.0,107780.0,0.6951338]
[1761178654718,0.02833,107790.0,107780.0,0.6951338]
[1761178654920,0.04989,107790.0,107780.0,0.6951338]
[1761178655320,0.04989,107790.0,107780.0,0.72845411]
[1761178656216,0.02833,107790.0,107780.0,0.72845411]
[1761178656423,0.0058,107790.0,107780.0,0.72845411]
[1761178656824,0.02833,107790.0,107780.0,0.72845411]
[1761178657824,0.02833,107790.0,107780.0,0.40193411]
[1761178658119,0.04989,107790.0,107780.0,0.23142726]
[1761178658324,0.04989,107790.0,107780.0,0.72841411]
[1761178658928,0.04989,107790.0,107780.0,0.67835906]
[1761178662831,0.04989,107790.0,107780.0,0.72841411]
[1761178663518,0.0058,107790.0,107780.0,0.72841411]
[1761178664119,0.04989,107790.0,107780.0,0.72841411]
[1761178664318,0.04989,107790.0,107780.0,0.40193411]
[1761178664514,0.04989,107790.0,107780.0,0.72841411]
[1761178664726,0.04989,107790.0,107780.0,0.67835906]
[1761178664922,0.0058,107790.0,107780.0,0.67835906]
[1761178665321,0.0058,107790.0,107780.0,0.72841411]
[1761178665622,0.0058,107790.0,107780.0,0.35187906]
[1761178665827,0.04989,107790.0,107780.0,0.67835906]
[1761178666027,0.04989,107790.0,107780.0,0.35187906]
[1761178666228,0.04989,107790.0,107780.0,0.72841411]
[1761178668324,0.0058,107790.0,107780.0,0.89892096]
[1761178668526,0.0058,107790.0,107780.0,0.86560065]
[1761178668728,0.0058,107790.0,107780.0,0.67610469]
[1761178670332,0.04989,107790.0,107780.0,0.67610469]
[1761178670632,0.0058,107790.0,107780.0,0.67610469]
[1761178672236,0.02833,107790.0,107780.0,0.67610469]
[1761178672935,0.0058,107790.0,107780.0,0.67610469]
[1761178673837,0.0058,107790.0,107780.0,0.34962469]
[1761178674136,0.0058,107790.0,107780.0,0.67606469]
[1761178676237,0.0058,107790.0,107780.0,0.62600964]
[1761178678240,0.0058,107790.0,107780.0,0.69267929]
[1761178679241,0.04877,107790.0,107780.0,0.69267929]
[1761178681645,0.04877,107790.0,107780.0,0.36623929]
[1761178681846,0.04877,107790.0,107780.0,0.69267929]
[1761178686356,0.04877,107790.0,107780.0,0.62600964]
[1761178688356,0.02702,107790.0,107780.0,0.62600964]
[1761178688656,0.0058,107790.0,107780.0,0.62600964]
[1761178692657,0.0058,107790.0,107780.0,0.69267929]
[1761178696562,0.04877,107790.0,107780.0,0.69267929]
[1761178697366,0.06252,107790.0,107780.0,0.54116155]
[1761178697556,0.04877,107790.0,107780.0,0.69267929]
[1761178697957,0.02702,107790.0,107780.0,0.69267929]
[1761178701570,0.0058,107790.0,107780.0,0.69267929]
[1761178702773,0.02702,107790.0,107780.0,0.69267929]
[1761178703173,0.0058,107790.0,107780.0,0.69267929]
[1761178703874,0.0058,107790.0,107780.0,0.62600964]
[1761178705073,0.02811,107790.0,107780.0,0.62600964]
[1761178706173,0.0058,107790.0,107780.0,0.62600964]
[1761178706374,0.02811,107790.0,107780.0,0.62600964]
[1761178706674,0.02811,107790.0,107780.0,0.4744919]
[1761178706867,0.0058,107790.0,107780.0,0.62600964]
[1761178707573,0.02811,107790.0,107780.0,0.62600964]
[1761178707872,0.0058,107790.0,107780.0,0.62600964]
[1761178708275,0.05113,107790.0,107780.0,0.1480519]
[1761178708467,0.46407,107790.0,107780.0,0.18766238]
[1761178708666,0.46407,107790.0,107780.0,0.51406238]
[1761178708867,0.46407,107790.0,107780.0,0.66558012]
[1761178709176,0.46407,107790.0,107780.0,0.69897994]
[1761178709475,0.46407,107790.0,107780.0,0.67608012]
[1761178710274,0.46407,107790.0,107780.0,0.70947558]
[1761178711373,0.46407,107790.0,107780.0,0.38307558]
[1761178711578,0.46407,107790.0,107780.0,0.70947558]
[1761178712574,0.46407,107790.0,107780.0,0.38307558]
[1761178712780,0.46407,107790.0,107780.0,0.70947558]
[1761178713881,0.46407,107790.0,107780.0,0.38307558]
[1761178714081,0.45113,107790.0,107780.0,0.70947558]
[1761178714382,0.45113,107790.0,107780.0,0.67608012]
[1761178714682,0.45113,107790.0,107780.0,0.34968012]
[1761178714982,0.45113,107790.0,107780.0,0.67608012]
[1761178715782,0.42811,107790.0,107780.0,0.67608012]
[1761178716375,0.0058,107790.0,107780.0,0.67608012]
[1761178716680,0.0058,107790.0,107780.0,0.69263929]
[1761178718183,0.0058,107790.0,107780.0,1.09263929]
[1761178721985,0.02811,107790.0,107780.0,1.09263929]
[1761178722484,0.0058,107790.0,107780.0,1.09263929]
[1761178723083,0.02811,107790.0,107780.0,0.69263929]
[1761178723284,0.05113,107790.0,107780.0,0.69263929]
[1761178723484,0.02811,107790.0,107780.0,0.69263929]
[1761178723782,0.0058,107790.0,107780.0,0.69263929]
[1761178730693,0.0058,107790.0,107780.0,0.88202203]
[1761178733386,0.02811,107790.0,107780.0,0.88202203]
[1761178734499,0.0058,107790.0,107780.0,0.88202203]
[1761178743199,0.0028,107790.0,107780.0,0.88202203]
[1761178743401,0.0048,107790.0,107780.0,0.88202203]
[1761178746907,0.02755,107790.0,107780.0,0.88202203]
[1761178747112,0.0048,107790.0,107780.0,0.88202203]
[1761178747613,0.02755,107790.0,107780.0,0.88202203]
[1761178747802,0.06271,107790.0,107780.0,0.71153179]
[1761178748004,0.06271,107790.0,107780.0,0.37467179]
[1761178748214,0.06271,107790.0,107780.0,0.63432214]
[1761178748912,0.06271,107790.0,107780.0,0.35811334]
[1761178749115,0.0048,107790.0,107780.0,0.86538358]
[1761178749507,0.0048,107790.0,107780.0,0.81527238]
[1761178749707,0.0048,107790.0,107780.0,0.86538036]
[1761178749902,0.02755,107790.0,107780.0,0.86538036]
[1761178750306,0.0048,107790.0,107780.0,0.86538036]
[1761178751514,0.0048,107790.0,107780.0,0.81527238]
[1761178756014,0.04531,107810.0,107800.0,0.1478147]
[1761178756314,0.08291636,107820.0,107810.0,0.1440461]
[1761178756513,0.05081936,107830.0,107810.0,0.1440461]
[1761178756514,0.06322572,107830.0,107820.0,0.0927375]
[1761178756717,0.08771636,107830.0,107820.0,0.80267798]
[1761178756918,0.08771636,107830.0,107820.0,0.66560906]
[1761178757315,0.06271,107830.0,107820.0,0.80267798]
[1761178757618,0.06271,107830.0,107820.0,0.8360593]
[1761178758020,0.06271,107830.0,107820.0,0.84520566]
[1761178758316,0.06271,107830.0,107820.0,0.81182434]
[1761178758517,0.46271,107830.0,107820.0,0.63222774]
[1761178758725,0.46271,107830.0,107820.0,0.53949024]
[1761178759114,0.46471,107830.0,107820.0,0.53949024]
[1761178759414,0.46471,107830.0,107820.0,0.63222774]
[1761178761718,0.46271,107830.0,107820.0,0.63222774]
[1761178761908,0.46271,107830.0,107820.0,0.63322774]
[1761178762726,0.46471,107830.0,107820.0,0.63222774]
[1761178763222,0.46471,107830.0,107820.0,0.30590774]
[1761178763526,0.46471,107830.0,107820.0,0.61089774]
[1761178763826,0.46471,107830.0,107820.0,0.4404475]
[1761178764122,0.46471,107830.0,107820.0,0.4190175]
[1761178764425,0.46471,107830.0,107820.0,0.58946774]
[1761178766226,0.46471,107830.0,107820.0,0.61267774]
[1761178767428,0.46471,107830.0,107820.0,0.63414774]
[1761178767823,0.46471,107830.0,107820.0,0.64464774]
[1761178768220,0.0068,107830.0,107820.0,0.81509798]
[1761178768931,0.05159,107830.0,107820.0,0.81509798]
[1761178770827,0.0068,107830.0,107820.0,0.81509798]
[1761178772229,0.00651222,107830.0,107820.0,0.81509798]
[1761178776730,0.02894222,107830.0,107820.0,0.81509798]
[1761178777525,0.00651222,107830.0,107820.0,0.81509798]
[1761178778833,0.00651222,107830.0,107820.0,0.8484793]
[1761178779333,0.00651222,107830.0,107820.0,1.2484793]
[1761178783322,0.00651222,107830.0,107820.0,1.29858374]
[1761178785337,0.00651222,107830.0,107820.0,1.26520242]
[1761178792843,0.00651222,107830.0,107820.0,0.67568793]
[1761178793044,0.00651222,107830.0,107820.0,1.07568793]
[1761178793239,0.05842572,107850.0,107840.0,0.1505203]
[1761178793445,0.04628,107860.0,107850.0,0.1467517]
[1761178793643,0.07608636,107870.0,107860.0,0.1486631]
[1761178793945,0.02980636,107870.0,107860.0,0.63563696]
[1761178794149,0.0048,107870.0,107860.0,1.0939783]
[1761178794353,0.0048,107870.0,107860.0,1.0939542]
[1761178794639,0.0048,107870.0,107860.0,1.1190803]
[1761178795241,0.0048,107870.0,107860.0,1.11901668]
[1761178796340,0.0048,107870.0,107860.0,1.06891224]
[1761178797241,0.0048,107870.0,107860.0,1.09384222]
[1761178797853,0.0048,107870.0,107860.0,1.06891224]
[1761178798242,0.08475636,107900.0,107890.0,0.04546]
[1761178798442,0.05975,107900.0,107890.0,0.52308599]
[1761178799249,0.45975,107900.0,107890.0,0.52308599]
[1761178799451,0.45975,107900.0,107890.0,0.61676329]
[1761178800149,0.45975,107900.0,107890.0,0.19784599]